bitfinex/quotes_SOLUSD_20250714
["timestamp","ask_amount","ask_price","bid_price","bid_amount"]
[1752453063644,16.78468397,161.25,161.23,47.36660195]
[1752453064160,21.69444057,161.25,161.24,0.7]
[1752453064368,21.69444057,161.25,161.23,46.66660195]
[1752453064548,21.69444057,161.25,161.23,47.36660195]
[1752453064872,21.69444057,161.25,161.23,41.68]
[1752453065045,27.38104252,161.25,161.24,31.68]
[1752453065247,31.53921754,161.25,161.24,31.68]
[1752453068248,31.54312275,161.25,161.24,31.68]
[1752453068548,16.78468397,161.24,161.17,10.0]
[1752453068747,16.78468397,161.19,161.17,10.0]
[1752453069348,16.78468397,161.19,161.18,10.0]
[1752453069857,16.78468397,161.19,161.18,41.68]
[1752453071176,16.78468397,161.19,161.18,31.68]
[1752453071366,16.78468397,161.19,161.18,41.68]
[1752453071571,22.47128592,161.19,161.18,31.68]
[1752453071774,22.47128592,161.19,161.18,41.68]
[1752453071775,21.77128592,161.19,161.18,41.68]
[1752453071958,21.77128592,161.19,161.18,31.68]
[1752453072281,21.77128592,161.19,161.18,41.68]
[1752453073076,25.93452054,161.19,161.18,41.68]
[1752453073482,26.63452054,161.19,161.18,31.68]
[1752453080983,16.78468397,161.19,161.18,31.68]
[1752453081188,4.90188303,161.25,161.18,37.36660195]
[1752453081189,16.78468397,161.22,161.18,37.36660195]
[1752453081489,16.78468397,161.22,161.19,0.7]
[1752453081780,16.78468397,161.22,161.2,31.68]
[1752453083078,5.68660195,161.21,161.2,31.68]
[1752453083284,16.78468397,161.19,161.17,10.0]
[1752453083578,22.47128592,161.19,161.18,31.68]
[1752453083976,16.78468397,161.19,161.18,41.68]
[1752453084181,21.77128592,161.19,161.18,41.68]
[1752453084382,21.77128592,161.19,161.18,31.68]
[1752453085790,22.47128592,161.19,161.18,31.68]
[1752453086585,26.63569701,161.19,161.18,31.68]
[1752453089084,163.48468397,161.17,161.16,0.06]
[1752453089285,172.63569701,161.17,161.16,0.06]
[1752453089484,173.33569701,161.17,161.16,0.06]
[1752453090389,173.33569701,161.17,161.16,31.74]
[1752453090390,26.63569701,161.17,161.16,31.74]
[1752453094989,163.32468397,161.14,161.13,0.06]
[1752453095191,21.77128592,161.14,161.13,0.06]
[1752453095400,16.78468397,161.14,161.13,0.06]
[1752453095601,21.77128592,161.14,161.13,0.06]
[1752453096207,21.77128592,161.14,161.13,31.74]
[1752453096402,22.46128592,161.14,161.13,31.74]
[1752453096598,26.62053353,161.14,161.13,31.74]
[1752453096793,25.93053353,161.14,161.13,31.74]
[1752453096974,16.78468397,161.14,161.13,31.74]
[1752453097179,21.77128592,161.14,161.13,31.74]
[1752453097406,21.77128592,161.14,161.13,0.06]
[1752453097612,21.77128592,161.14,161.13,31.74]
[1752453097993,16.78468397,161.14,161.13,47.44660195]
[1752453098211,0.69,161.22,161.18,3.4040718]
[1752453098394,5.67660195,161.22,161.19,31.68]
[1752453098600,4.61867268,161.21,161.19,31.68]
[1752453098796,9.60527463,161.21,161.19,31.68]
[1752453099004,5.67660195,161.22,161.19,31.68]
[1752453099205,16.78468397,161.21,161.19,31.68]
[1752453101097,0.69,161.23,161.19,32.4]
[1752453101307,16.78468397,161.22,161.19,32.4]
[1752453101928,146.7,161.21,161.19,36.66660195]
[1752453102230,163.48468397,161.21,161.2,0.62726857]
[1752453102525,16.78468397,161.2,161.19,40.07067375]
[1752453104129,146.7,161.21,161.19,40.79067375]
[1752453104312,16.78468397,161.2,161.19,35.0840718]
[1752453104507,16.78468397,161.2,161.19,40.07067375]
[1752453104927,16.78468397,161.2,161.19,40.79067375]
[1752453106933,0.03,161.22,161.21,3.4040718]
[1752453107135,0.03,161.22,161.21,35.0840718]
[1752453112838,17.50468397,161.22,161.21,35.0840718]
[1752453113937,22.49128592,161.22,161.21,31.68]
[1752453116617,26.64831317,161.22,161.21,31.68]
[1752453116820,20.97171122,161.22,161.21,31.68]
[1752453117027,16.81468397,161.22,161.21,35.0840718]
[1752453118511,16.81468397,161.22,161.21,40.79067375]
[1752453119845,16.81468397,161.22,161.21,35.8040718]
[1752453120539,16.81468397,161.22,161.21,35.0840718]
[1752453120929,16.81468397,161.22,161.21,35.8040718]
[1752453122643,0.03,161.22,161.21,47.31837375]
[1752453123021,0.03,161.22,161.21,41.6117718]
[1752453123228,0.03,161.22,161.21,35.0840718]
[1752453123534,22.46128592,161.22,161.2,3.4040718]
[1752453123720,17.47468397,161.22,161.21,35.0640718]
[1752453123925,5.01660195,161.22,161.21,35.0640718]
[1752453124158,5.01660195,161.22,161.21,31.66]
[1752453124441,5.67660195,161.22,161.21,31.66]
[1752453124652,22.46128592,161.22,161.21,31.66]
[1752453124851,26.61545342,161.22,161.21,31.66]
[1752453125022,22.46128592,161.22,161.21,35.0640718]
[1752453125825,16.81468397,161.22,161.21,35.0640718]
[1752453126043,21.80128592,161.22,161.21,35.0640718]
[1752453126247,22.46128592,161.22,161.21,31.66]
[1752453127248,17.47468397,161.22,161.21,31.66]
[1752453127545,22.46128592,161.22,161.21,31.66]
[1752453127940,16.81468397,161.22,161.21,31.66]
[1752453128138,16.81468397,161.22,161.21,35.0640718]
[1752453128659,16.81468397,161.22,161.21,31.66]
[1752453128953,21.80128592,161.22,161.21,31.66]
[1752453129326,16.81468397,161.22,161.21,31.66]
[1752453129728,16.81468397,161.22,161.21,35.0640718]
[1752453130133,22.46128592,161.22,161.18,3.4040718]
[1752453130441,22.46128592,161.22,161.16,2.2456]
[1752453130442,16.78468397,161.19,161.17,3.4040718]
[1752453130643,16.78468397,161.19,161.18,35.0640718]
[1752453131539,4.98660195,161.21,161.18,35.0640718]
[1752453131735,16.78468397,161.2,161.18,35.0640718]
[1752453132056,16.78468397,161.2,161.18,31.66]
[1752453132435,16.78468397,161.2,161.19,3.4040718]
[1752453132631,5.67660195,161.22,161.19,3.4040718]
[1752453132836,16.81468397,161.22,161.2,32.33]
[1752453133149,16.81468397,161.22,161.21,3.4040718]
[1752453133452,0.03,161.22,161.21,3.4040718]
[1752453133857,0.03,161.22,161.2,35.7340718]
[1752453134150,0.03,161.22,161.21,3.4040718]
[1752453135745,0.03,161.22,161.2,35.0640718]
[1752453135972,5.01660195,161.22,161.2,35.0640718]
[1752453136264,16.78468397,161.21,161.2,35.0640718]
[1752453138450,0.03,161.22,161.2,35.0640718]
[1752453138757,0.03,161.22,161.21,4.0740718]
[1752453138961,0.03,161.22,161.21,9.06067375]
[1752453139262,0.03,161.22,161.21,10.70537375]
[1752453142473,0.03,161.26,161.22,3.4040718]
[1752453142654,0.03,161.26,161.23,31.66]
[1752453142855,0.03,161.26,161.25,4.98660195]
[1752453143066,0.03,161.26,161.25,40.05067375]
[1752453143557,0.03,161.26,161.25,40.72067375]
[1752453146647,0.03,161.26,161.25,35.0640718]
[1752453147342,17.47468397,161.26,161.25,35.0640718]
[1752453148255,16.81468397,161.26,161.25,35.0640718]
[1752453149368,16.81468397,161.26,161.25,35.7340718]
[1752453149757,0.03,161.26,161.25,40.72067375]
[1752453154077,0.03,161.26,161.25,48.89907375]
[1752453155674,0.03,161.28,161.25,53.8856757]
[1752453155973,0.03,161.28,161.27,13.3772757]
[1752453156181,0.03,161.28,161.27,45.0172757]
[1752453156354,16.81468397,161.35,161.27,45.7272757]
[1752453156553,16.81468397,161.35,161.34,8.39067375]
[1752453156756,16.81468397,161.35,161.34,40.03067375]
[1752453157174,0.03,161.35,161.34,40.74067375]
[1752453157683,0.03,161.35,161.34,40.03067375]
[1752453158273,0.03,161.35,161.34,40.74067375]
[1752453162865,0.03,161.35,161.34,45.7272757]
[1752453163770,0.2,161.36,161.35,5.0355718]
[1752453164092,0.2,161.39,161.38,3.4040718]
[1752453164265,0.2,161.39,161.38,46.44817375]
[1752453164465,0.2,161.39,161.38,47.15817375]
[1752453166774,0.2,161.39,161.38,15.51817375]
[1752453167113,0.2,161.39,161.38,47.15817375]
[1752453171709,0.2,161.39,161.38,40.74067375]
[1752453172393,22.65128592,161.39,161.38,3.4040718]
[1752453172615,22.65128592,161.39,161.38,35.0440718]
[1752453173116,17.66468397,161.39,161.38,35.0440718]
[1752453177316,16.98468397,161.39,161.38,35.0440718]
[1752453177823,0.2,161.39,161.38,40.74067375]
[1752453183825,0.2,161.39,161.38,40.03067375]
[1752453184026,0.86,161.39,161.38,3.4040718]
[1752453184228,22.63128592,161.39,161.38,35.0240718]
[1752453184621,22.63128592,161.39,161.38,31.62]
[1752453184839,22.63128592,161.39,161.37,3.4040718]
[1752453185041,22.43128592,161.38,161.35,3.4040718]
[1752453185238,4.98660195,161.36,161.35,3.4040718]
[1752453185438,16.78468397,161.35,161.34,3.4040718]
[1752453185631,17.44468397,161.35,161.34,3.4040718]
[1752453186022,22.43128592,161.35,161.34,3.4040718]
[1752453186343,22.43128592,161.35,161.34,35.0240718]
[1752453187443,22.43128592,161.35,161.34,3.4040718]
[1752453187744,22.43128592,161.35,161.34,35.0240718]
[1752453187929,22.43128592,161.35,161.34,31.62]
[1752453188129,22.43128592,161.35,161.34,35.0240718]
[1752453191629,17.44468397,161.35,161.34,35.0240718]
[1752453191835,22.43128592,161.35,161.34,35.0840718]
[1752453192843,22.43128592,161.35,161.34,31.68]
[1752453193157,22.43128592,161.35,161.34,35.0840718]
[1752453193540,22.43128592,161.35,161.34,31.68]
[1752453193849,22.43128592,161.35,161.34,35.0840718]
[1752453194656,5.64660195,161.37,161.36,3.4040718]
[1752453194856,5.64660195,161.37,161.36,35.0240718]
[1752453195250,22.43128592,161.37,161.36,35.0240718]
[1752453197348,16.78468397,161.37,161.36,35.0240718]
[1752453197539,17.44468397,161.37,161.36,35.0240718]
[1752453201659,22.43128592,161.37,161.36,35.0240718]
[1752453203575,17.44468397,161.37,161.36,35.0240718]
[1752453204070,22.43128592,161.37,161.36,35.0240718]
[1752453204462,22.43128592,161.37,161.36,31.62]
[1752453206856,27.41788787,161.37,161.36,31.62]
[1752453208077,22.43128592,161.37,161.36,31.62]
[1752453209960,31.56258105,161.37,161.36,31.62]
[1752453210372,163.42468397,161.34,161.33,26.74]
[1752453210680,169.07128592,161.34,161.33,26.74]
[1752453211475,169.07128592,161.34,161.33,58.36]
[1752453211672,169.12128592,161.34,161.33,61.7640718]
[1752453212004,163.42468397,161.34,161.33,67.45067375]
[1752453212174,163.42468397,161.34,161.33,62.4640718]
[1752453214083,163.42468397,161.34,161.33,61.7640718]
[1752453214675,164.13468397,161.34,161.33,61.7640718]
[1752453214876,169.12128592,161.34,161.33,61.7640718]
[1752453215076,169.12128592,161.34,161.33,58.36]
[1752453215682,169.12128592,161.34,161.33,61.7640718]
[1752453215897,169.12128592,161.34,161.33,58.36]
[1752453216200,22.48128592,161.34,161.33,58.36]
[1752453216703,26.6325152,161.34,161.33,58.36]
[1752453217011,22.48128592,161.34,161.33,58.36]
[1752453217189,26.6327822,161.34,161.33,58.36]
[1752453218678,16.78468397,161.33,161.29,0.06]
[1752453218883,21.77128592,161.3,161.29,0.06]
[1752453219280,22.48128592,161.3,161.29,0.06]
[1752453219914,22.48128592,161.3,161.29,31.7]
[1752453220197,22.48128592,161.3,161.29,35.1040718]
[1752453223117,21.77128592,161.3,161.29,35.1040718]
[1752453228214,22.48128592,161.3,161.29,35.1040718]
[1752453229911,21.77128592,161.3,161.29,35.1040718]
[1752453230113,16.78468397,161.3,161.29,40.79067375]
[1752453230515,4.98660195,161.35,161.33,3.4040718]
[1752453230691,16.78468397,161.34,161.33,3.4040718]
[1752453230892,16.78468397,161.34,161.33,35.0440718]
[1752453233830,22.48128592,161.34,161.33,35.0440718]
[1752453234298,26.63759897,161.34,161.33,35.0440718]
[1752453234719,22.48128592,161.34,161.33,35.0440718]
[1752453235493,22.48128592,161.34,161.32,3.4040718]
[1752453235698,26.63785682,161.33,161.32,3.4040718]
[1752453235993,26.63785682,161.33,161.32,31.64]
[1752453236198,26.63785682,161.33,161.32,35.0440718]
[1752453236621,26.63785682,161.33,161.32,31.64]
[1752453236812,26.63785682,161.33,161.32,35.0440718]
[1752453237437,26.63785682,161.33,161.32,31.64]
[1752453238000,26.63785682,161.33,161.32,35.0440718]
[1752453239223,26.63785682,161.33,161.32,31.64]
[1752453239425,26.63785682,161.33,161.32,35.0440718]
[1752453240841,26.63785682,161.33,161.32,31.64]
[1752453241034,26.63785682,161.33,161.32,35.0440718]
[1752453242448,16.78468397,161.33,161.32,35.0440718]
[1752453242635,16.78468397,161.33,161.32,35.7340718]
[1752453243553,16.78468397,161.33,161.32,40.72067375]
[1752453244920,16.78468397,161.33,161.32,35.7340718]
[1752453247446,22.47128592,161.33,161.32,35.0240718]
[1752453247661,16.78468397,161.33,161.32,35.0240718]
[1752453249365,22.47128592,161.33,161.32,35.0240718]
[1752453249869,26.63265602,161.33,161.32,35.0240718]
[1752453251843,20.94605407,161.33,161.32,35.0240718]
[1752453252055,16.78468397,161.33,161.32,40.70067375]
[1752453252255,21.77128592,161.33,161.32,35.0240718]
[1752453252457,17.48468397,161.33,161.32,35.0240718]
[1752453252661,16.78468397,161.33,161.32,35.7140718]
[1752453253653,16.78468397,161.33,161.32,35.0240718]
[1752453256350,21.77128592,161.33,161.32,35.0240718]
[1752453256574,22.47128592,161.33,161.32,35.0240718]
[1752453257557,17.48468397,161.33,161.32,35.0240718]
[1752453257763,22.47128592,161.33,161.32,35.0240718]
[1752453257981,26.6345154,161.33,161.32,35.0240718]
[1752453259380,26.6345154,161.33,161.32,31.62]
[1752453259561,26.6345154,161.33,161.32,35.0240718]
[1752453260460,26.6345154,161.33,161.32,31.62]
[1752453261469,31.2627533,161.33,161.32,31.62]
[1752453262272,31.2627533,161.33,161.32,35.0240718]
[1752453262485,25.9345154,161.33,161.32,35.0240718]
[1752453262785,20.94791345,161.33,161.32,35.0240718]
[1752453262975,16.78468397,161.33,161.32,35.0240718]
[1752453263280,16.78468397,161.33,161.32,35.7140718]
[1752453263988,16.78468397,161.33,161.32,35.0240718]
[1752453264379,16.78468397,161.33,161.32,35.7140718]
[1752453265466,16.78468397,161.33,161.32,35.0240718]
[1752453266784,16.78468397,161.33,161.32,35.7140718]
[1752453267293,0.03,161.34,161.33,3.4040718]
[1752453267585,0.03,161.34,161.33,4.0940718]
[1752453268978,0.03,161.34,161.33,3.4040718]
[1752453269882,5.71660195,161.34,161.33,3.4040718]
[1752453270087,9.88197987,161.34,161.33,3.4040718]
[1752453270382,31.29439985,161.34,161.32,35.0240718]
[1752453270688,9.15197987,161.33,161.32,35.0240718]
[1752453270871,22.50128592,161.34,161.33,3.4040718]
[1752453271074,31.29511621,161.34,161.33,3.4040718]
[1752453272290,20.98046316,161.34,161.33,4.0640718]
[1752453272496,16.81468397,161.34,161.33,4.0640718]
[1752453272681,16.81468397,161.34,161.33,3.4040718]
[1752453274071,16.81468397,161.34,161.33,4.0640718]
[1752453274270,16.81468397,161.34,161.33,9.05067375]
[1752453274470,16.81468397,161.34,161.33,4.0640718]
[1752453279592,16.81468397,161.34,161.33,3.4040718]
[1752453279897,17.49468397,161.34,161.33,3.4040718]
[1752453280276,22.48128592,161.34,161.33,3.4040718]
[1752453280572,16.78468397,161.33,161.31,0.06]
[1752453280885,25.93644861,161.32,161.31,0.06]
[1752453281081,26.61644861,161.32,161.31,31.68]
[1752453282273,173.31644861,161.32,161.31,31.68]
[1752453282786,16.78468397,161.31,161.29,0.06]
[1752453282982,172.63644861,161.3,161.29,0.06]
[1752453283181,173.31644861,161.3,161.29,3.4640718]
[1752453283592,173.31644861,161.3,161.29,0.06]
[1752453283799,173.31644861,161.3,161.29,35.0840718]
[1752453284470,173.31644861,161.3,161.29,31.68]
[1752453284675,173.31644861,161.3,161.29,35.0840718]
[1752453284874,173.31644861,161.3,161.29,31.68]
[1752453285087,173.31644861,161.3,161.29,35.0840718]
[1752453285304,173.31644861,161.3,161.29,31.68]
[1752453285888,173.31644861,161.3,161.29,35.0840718]
[1752453286694,173.31644861,161.3,161.29,31.68]
[1752453286893,168.32984666,161.3,161.29,35.0840718]
[1752453287109,173.31644861,161.3,161.29,35.0840718]
[1752453287297,26.61644861,161.3,161.29,35.0840718]
[1752453287686,31.24020073,161.3,161.29,35.0840718]
[1752453288710,31.24020073,161.3,161.29,31.68]
[1752453288922,31.24020073,161.3,161.29,35.0840718]
[1752453289295,31.24020073,161.3,161.29,31.68]
[1752453289911,31.24020073,161.3,161.29,35.0840718]
[1752453290098,31.24020073,161.3,161.29,31.68]
[1752453291596,31.24020073,161.3,161.29,35.0840718]
[1752453292809,31.24020073,161.3,161.29,31.68]
[1752453293012,31.24020073,161.3,161.29,35.0840718]
[1752453293397,31.24020073,161.3,161.29,31.68]
[1752453293599,31.23642942,161.3,161.29,35.0840718]
[1752453294208,31.23642943,161.3,161.29,35.0840718]
[1752453294394,31.23642943,161.3,161.29,31.68]
[1752453296492,31.23505702,161.3,161.29,31.68]
[1752453298415,31.23505702,161.3,161.29,35.0840718]
[1752453300228,31.23505702,161.3,161.29,31.68]
[1752453300730,31.23505702,161.3,161.29,35.0840718]
[1752453301102,31.23505702,161.3,161.29,31.68]
[1752453301501,26.61644861,161.3,161.29,31.68]
[1752453301803,16.78468397,161.29,161.26,0.06]
[1752453302004,21.77128592,161.27,161.26,0.06]
[1752453302231,16.78468397,161.26,161.23,3.4040718]
[1752453302417,21.77128592,161.24,161.22,0.06]
[1752453302617,21.77128592,161.23,161.22,3.4640718]
[1752453302820,21.77128592,161.23,161.22,35.0840718]
[1752453302821,22.46128592,161.23,161.22,35.0840718]
[1752453303124,169.16128592,161.23,161.22,35.0840718]
[1752453303430,168.47128592,161.23,161.22,35.0840718]
[1752453303833,163.48468397,161.23,161.22,35.8040718]
[1752453305738,163.48468397,161.23,161.22,35.0840718]
[1752453306524,163.48468397,161.23,161.22,35.8040718]
[1752453307218,169.16128592,161.23,161.22,35.0840718]
[1752453307729,168.47128592,161.23,161.22,35.0840718]
[1752453307930,21.77128592,161.23,161.22,35.0840718]
[1752453310055,16.78468397,161.23,161.22,35.8040718]
[1752453314545,16.78468397,161.23,161.22,35.0840718]
[1752453316652,16.78468397,161.26,161.25,3.4040718]
[1752453316853,16.78468397,161.26,161.25,35.0240718]
[1752453317863,3.85184828,161.28,161.25,35.0240718]
[1752453318048,16.78468397,161.26,161.25,35.0240718]
[1752453323859,22.46128592,161.26,161.25,35.0240718]
[1752453324260,17.47468397,161.26,161.25,35.0240718]
[1752453324572,22.46128592,161.26,161.25,35.0240718]
[1752453325377,26.62694,161.26,161.25,35.0240718]
[1752453325579,26.62694,161.26,161.25,35.0840718]
[1752453326360,31.25574487,161.26,161.25,35.0840718]
[1752453327684,31.2561197,161.26,161.25,35.0840718]
[1752453327979,26.26951775,161.26,161.25,35.0840718]
[1752453328171,31.2561197,161.26,161.25,35.0840718]
[1752453329686,31.2561197,161.26,161.25,31.68]
[1752453332180,25.57951775,161.26,161.25,31.68]
[1752453332491,25.57951775,161.26,161.25,35.0840718]
[1752453332662,30.5661197,161.26,161.25,35.0840718]
[1752453333290,25.93694,161.26,161.25,35.0840718]
[1752453333490,30.56650639,161.26,161.25,35.0840718]
[1752453333791,31.25650639,161.26,161.25,35.0840718]
[1752453334091,25.57990444,161.26,161.25,35.0840718]
[1752453334285,16.78468397,161.26,161.25,35.7640718]
[1752453334882,12.95537797,161.28,161.25,35.7640718]
[1752453334883,7.96877602,161.28,161.25,35.7640718]
[1752453335085,16.78468397,161.28,161.27,3.4040718]
[1752453335285,16.78468397,161.28,161.27,35.0240718]
[1752453336682,21.82665573,161.28,161.27,35.0240718]
[1752453338196,21.82665573,161.28,161.27,35.7040718]
[1752453339984,16.78468397,161.28,161.27,35.7040718]
[1752453341905,16.78468397,161.28,161.27,35.0240718]
[1752453344693,22.46128592,161.28,161.27,3.4040718]
[1752453345002,22.46128592,161.28,161.27,35.0240718]
[1752453347290,22.46128592,161.28,161.27,31.62]
[1752453347605,31.25302141,161.28,161.27,31.62]
[1752453347805,36.23962336,161.28,161.27,31.62]
[1752453348984,36.26962336,161.28,161.27,31.62]
[1752453350595,163.48468397,161.26,161.25,0.06]
[1752453350787,177.26302141,161.26,161.25,0.06]
[1752453350988,177.95302141,161.26,161.25,3.4640718]
[1752453351411,177.95302141,161.26,161.25,0.06]
[1752453351706,177.95302141,161.26,161.25,31.66]
[1752453352299,31.25302141,161.26,161.25,31.66]
[1752453352804,31.25302141,161.26,161.25,35.0640718]
[1752453353007,31.25302141,161.26,161.25,31.66]
[1752453353182,25.57641946,161.26,161.25,35.0640718]
[1752453353381,20.94926017,161.26,161.25,35.7440718]
[1752453353602,20.94926017,161.26,161.25,35.0640718]
[1752453353909,25.93586212,161.26,161.25,35.0640718]
[1752453354418,30.56488688,161.26,161.25,35.0640718]
[1752453355015,26.40031068,161.26,161.25,35.0640718]
[1752453355216,27.09031068,161.26,161.25,35.0640718]
[1752453355506,30.56591858,161.26,161.25,35.0640718]
[1752453356397,30.56642319,161.26,161.25,35.0640718]
[1752453359807,31.25642319,161.26,161.25,35.0640718]
[1752453361217,31.25642319,161.26,161.25,0.06]
[1752453361404,31.25642319,161.26,161.25,31.66]
[1752453361714,26.62689382,161.26,161.25,31.66]
[1752453361900,31.25744902,161.26,161.25,31.66]
[1752453362225,16.78468397,161.23,161.22,0.06]
[1752453362439,26.40184112,161.23,161.22,0.06]
[1752453362595,27.09184112,161.23,161.22,0.06]
[1752453362797,31.25815235,161.23,161.22,0.06]
[1752453363521,31.25815235,161.23,161.22,31.66]
[1752453364408,30.56815235,161.23,161.22,31.66]
[1752453364808,31.25815235,161.23,161.22,31.66]
[1752453365621,30.56815235,161.23,161.22,31.66]
[1752453365827,21.41523917,161.23,161.22,35.7240718]
[1752453366422,16.78468397,161.25,161.22,35.7240718]
[1752453366722,16.78468397,161.23,161.22,35.0640718]
[1752453366919,16.78468397,161.25,161.24,3.4040718]
[1752453367115,21.41095854,161.25,161.24,35.0040718]
[1752453367321,26.39756049,161.25,161.24,35.0040718]
[1752453367626,21.41095854,161.25,161.24,35.0040718]
[1752453367828,4.98660195,161.25,161.24,35.0040718]
[1752453368504,21.77128592,161.25,161.24,35.0040718]
[1752453369211,22.46128592,161.25,161.24,35.0040718]
[1752453369905,16.78468397,161.25,161.24,35.0040718]
[1752453370232,22.46128592,161.25,161.24,35.0040718]
[1752453370922,21.77128592,161.25,161.24,35.0040718]
[1752453371807,21.77128592,161.25,161.24,35.0640718]
[1752453372233,16.78468397,161.25,161.24,35.0640718]
[1752453372434,21.77128592,161.25,161.24,35.0640718]
[1752453372612,26.39698608,161.25,161.24,35.0640718]
[1752453372925,27.08698608,161.25,161.24,35.0640718]
[1752453373318,22.46128592,161.25,161.24,35.0640718]
[1752453374319,21.77128592,161.25,161.24,35.0640718]
[1752453376336,16.78468397,161.25,161.24,35.7240718]
[1752453376850,16.78468397,161.25,161.24,35.0640718]
[1752453377522,16.78468397,161.25,161.24,40.71067375]
[1752453378534,16.78468397,161.25,161.24,35.7240718]
[1752453378738,16.78468397,161.25,161.24,40.71067375]
[1752453379124,0.03,161.26,161.25,3.4040718]
[1752453379319,0.03,161.26,161.25,9.05067375]
[1752453381231,0.03,161.26,161.25,17.29087375]
[1752453382424,146.73,161.28,161.27,3.4040718]
[1752453382624,0.03,161.28,161.27,47.2027757]
[1752453384221,0.03,161.3,161.29,9.9671718]
[1752453384451,0.03,161.31,161.3,3.4040718]
[1752453384633,0.03,161.31,161.3,9.05067375]
[1752453385334,0.03,161.34,161.33,3.4040718]
[1752453385651,0.03,161.34,161.33,48.17957375]
[1752453386024,0.03,161.34,161.33,48.83957375]
[1752453393845,0.03,161.34,161.33,17.23957375]
[1752453394037,0.03,161.34,161.33,48.81957375]
[1752453398541,0.03,161.34,161.33,41.59647375]
[1752453398940,0.03,161.34,161.33,42.31647375]
[1752453402560,0.03,161.34,161.33,39.97067375]
[1752453403358,0.03,161.34,161.33,34.9840718]
[1752453403550,0.7,161.34,161.33,34.9840718]
[1752453406366,0.03,161.34,161.33,34.9840718]
[1752453407362,0.03,161.34,161.33,40.69067375]
[1752453407671,0.03,161.34,161.33,34.9840718]
[1752453410166,0.03,161.34,161.33,39.97067375]
[1752453410464,0.03,161.34,161.33,40.69067375]
[1752453411749,0.03,161.34,161.33,39.97067375]
[1752453412862,0.03,161.34,161.33,40.69067375]
[1752453416069,0.03,161.34,161.33,39.97067375]
[1752453416249,0.7,161.34,161.33,34.9840718]
[1752453416576,22.47128592,161.34,161.33,34.9840718]
[1752453417143,22.47128592,161.34,161.33,3.4040718]
[1752453417344,22.47128592,161.34,161.33,34.9640718]
[1752453418167,27.06967585,161.34,161.33,34.9640718]
[1752453418342,22.47128592,161.34,161.33,34.9640718]
[1752453419268,17.48468397,161.34,161.33,34.9640718]
[1752453420139,22.47128592,161.34,161.33,34.9640718]
[1752453421267,31.22473667,161.34,161.33,34.9640718]
[1752453421446,22.47128592,161.34,161.33,34.9640718]
[1752453422158,27.07731098,161.34,161.33,34.9640718]
[1752453422566,31.22748439,161.34,161.33,34.9640718]
[1752453425376,31.23200776,161.34,161.33,31.56]
[1752453425559,31.23200776,161.34,161.33,34.9640718]
[1752453426974,22.08070903,161.34,161.33,34.9640718]
[1752453427174,22.0915404,161.34,161.33,34.9640718]
[1752453427367,22.46128592,161.34,161.33,34.9640718]
[1752453428373,27.07845268,161.34,161.33,34.9640718]
[1752453428581,22.46128592,161.34,161.33,34.9640718]
[1752453429085,27.07845286,161.34,161.33,31.56]
[1752453429766,27.07845286,161.34,161.33,34.9640718]
[1752453430286,27.0778619,161.34,161.33,34.9640718]
[1752453430477,22.46128592,161.34,161.33,34.9640718]
[1752453431083,22.46128592,161.34,161.33,31.56]
[1752453431975,31.23237554,161.34,161.33,31.56]
[1752453432380,31.23237554,161.34,161.33,34.9640718]
[1752453432681,26.24577359,161.34,161.33,34.9640718]
[1752453432882,31.23237554,161.34,161.33,34.9640718]
[1752453433077,31.23237554,161.34,161.33,31.56]
[1752453433983,163.42468397,161.31,161.3,3.4040718]
[1752453434164,16.78468397,161.3,161.28,3.4040718]
[1752453434480,147.3,161.29,161.28,3.4040718]
[1752453434862,152.28660195,161.29,161.28,3.4040718]
[1752453435380,152.28660195,161.29,161.28,34.9640718]
[1752453435567,151.62660195,161.29,161.28,34.9640718]
[1752453436376,151.62660195,161.29,161.28,35.0240718]
[1752453438071,5.64660195,161.29,161.28,35.0240718]
[1752453438276,22.43128592,161.29,161.28,0.06]
[1752453438494,22.43128592,161.29,161.28,31.62]
[1752453438995,27.04525083,161.29,161.28,31.62]
[1752453439290,27.04351497,161.29,161.28,31.62]
[1752453439499,27.04351497,161.29,161.28,35.0240718]
[1752453440398,17.44468397,161.29,161.28,35.0240718]
[1752453440573,22.43128592,161.29,161.28,35.0240718]
[1752453444297,17.44468397,161.29,161.28,35.0240718]
[1752453444593,21.77128592,161.29,161.28,35.0240718]
[1752453445168,16.78468397,161.29,161.28,35.6740718]
[1752453445374,16.78468397,161.32,161.31,3.4040718]